[Event "Titled Tuesday Blitz March 08 Early 2022"]
[White "Kadam, Om Manish"]
[Black "Demchenko, Anton"]
[WhiteFideId "45076294"]
[BlackFideId "4160258"]
[WhiteElo "1729"]
[BlackElo "2539"]
[Result "0-1"]
[Round "02"]
[TimeControl "180+1"]
[Date "2022.03.08"]
[WhiteClock "0:00:16"]
[BlackClock "0:00:04"]

1. e4 {[%clk 0:03:00]}  e5 {[%clk 0:02:57]} 2. Nf3 {[%clk 0:03:01]}  Nc6 {[%clk 0:02:58]} 3. Bc4 {[%clk 0:03:02]}  Nf6 {[%clk 0:02:58]} 4. d3 {[%clk 0:03:02]}  h6 {[%clk 0:02:57]} 5. c3 {[%clk 0:03:01]}  d6 {[%clk 0:02:57]} 6. Nbd2 {[%clk 0:02:59]}  g6 {[%clk 0:02:54]} 7. d4 {[%clk 0:02:59]}  Bg7 {[%clk 0:02:51]} 8. dxe5 {[%clk 0:02:58]}  Nxe5 {[%clk 0:02:50]} 9. Nxe5 {[%clk 0:02:58]}  dxe5 {[%clk 0:02:51]} 10. Qe2 {[%clk 0:02:58]}  O-O {[%clk 0:02:49]} 11. O-O {[%clk 0:02:58]}  Nh5 {[%clk 0:02:48]} 12. Nf3 {[%clk 0:02:54]}  Qe7 {[%clk 0:02:44]} 13. Rd1 {[%clk 0:02:54]}  Kh8 {[%clk 0:02:21]} 14. Be3 {[%clk 0:02:46]}  b6 {[%clk 0:02:15]} 15. Bd5 {[%clk 0:02:45]}  Rb8 {[%clk 0:02:14]} 16. a4 {[%clk 0:02:45]}  a5 {[%clk 0:02:07]} 17. Ne1 {[%clk 0:02:28]}  Bd7 {[%clk 0:01:55]} 18. Bc4 {[%clk 0:02:22]}  Bc6 {[%clk 0:01:52]} 19. Bd5 {[%clk 0:02:21]}  Bxd5 {[%clk 0:01:52]} 20. Rxd5 {[%clk 0:02:22]}  Nf6 {[%clk 0:01:52]} 21. Rdd1 {[%clk 0:02:20]}  Nxe4 {[%clk 0:01:49]} 22. Bxh6 {[%clk 0:02:19]}  Bxh6 {[%clk 0:01:42]} 23. Qxe4 {[%clk 0:02:18]}  Rbd8 {[%clk 0:01:35]} 24. Nf3 {[%clk 0:02:17]}  Bg7 {[%clk 0:01:34]} 25. h3 {[%clk 0:02:10]}  f5 {[%clk 0:01:16]} 26. Qc6 {[%clk 0:02:08]}  e4 {[%clk 0:01:16]} 27. Nd4 {[%clk 0:02:03]}  Rd6 {[%clk 0:01:14]} 28. Qc4 {[%clk 0:02:04]}  Rfd8 {[%clk 0:01:08]} 29. Rdc1 {[%clk 0:01:40]}  Qd7 {[%clk 0:00:56]} 30. Ne2 {[%clk 0:01:36]}  Be5 {[%clk 0:00:54]} 31. b4 {[%clk 0:01:23]}  axb4 {[%clk 0:00:50]} 32. cxb4 {[%clk 0:01:23]}  Bxa1 {[%clk 0:00:47]} 33. Rxa1 {[%clk 0:01:23]}  Rd1+ {[%clk 0:00:45]} 34. Rxd1 {[%clk 0:01:23]}  Qxd1+ {[%clk 0:00:46]} 35. Kh2 {[%clk 0:01:24]}  Qd3 {[%clk 0:00:37]} 36. Qf7 {[%clk 0:01:21]}  Qd6+ {[%clk 0:00:32]} 37. g3 {[%clk 0:01:21]}  Rd7 {[%clk 0:00:31]} 38. Qe8+ {[%clk 0:01:20]}  Kg7 {[%clk 0:00:31]} 39. Nf4 {[%clk 0:01:21]}  Re7 {[%clk 0:00:30]} 40. Qc8 {[%clk 0:01:05]}  e3 {[%clk 0:00:23]} 41. fxe3 {[%clk 0:01:05]}  Rxe3 {[%clk 0:00:21]} 42. h4 {[%clk 0:01:02]}  Re7 {[%clk 0:00:19]} 43. Kh3 {[%clk 0:01:01]}  Qd7 {[%clk 0:00:15]} 44. Qa8 {[%clk 0:00:55]}  Qd1 {[%clk 0:00:15]} 45. Qc6 {[%clk 0:00:52]}  Qd6 {[%clk 0:00:12]} 46. Qc3+ {[%clk 0:00:52]}  Kh7 {[%clk 0:00:12]} 47. Qc2 {[%clk 0:00:47]}  Qe5 {[%clk 0:00:09]} 48. Qc6 {[%clk 0:00:45]}  Qe4 {[%clk 0:00:09]} 49. Qxg6+ {[%clk 0:00:45]}  Kh8 {[%clk 0:00:09]} 50. Qh6+ {[%clk 0:00:42]}  Kg8 {[%clk 0:00:09]} 51. Qg5+ {[%clk 0:00:41]}  Rg7 {[%clk 0:00:09]} 52. Qd8+ {[%clk 0:00:40]}  Kh7 {[%clk 0:00:09]} 53. Qd1 {[%clk 0:00:40]}  Kg8 {[%clk 0:00:06]} 54. Qd8+ {[%clk 0:00:40]}  Kh7 {[%clk 0:00:07]} 55. Qd1 {[%clk 0:00:40]}  Kh8 {[%clk 0:00:05]} 56. Qh5+ {[%clk 0:00:35]}  Rh7 {[%clk 0:00:05]} 57. Qd1 {[%clk 0:00:34]}  Rf7 {[%clk 0:00:04]} 58. Qh5+ {[%clk 0:00:33]}  Kg7 {[%clk 0:00:05]} 59. Qd1 {[%clk 0:00:28]}  Kg8 {[%clk 0:00:04]} 60. h5 {[%clk 0:00:26]}  c6 {[%clk 0:00:03]} 61. h6 {[%clk 0:00:26]}  Rd7 {[%clk 0:00:03]} 62. Qa1 {[%clk 0:00:18]}  Kh7 {[%clk 0:00:03]} 63. Nh5 {[%clk 0:00:16]}  Qg4+ {[%clk 0:00:03]} 64. Kg2 {[%clk 0:00:16]}  Qxh5 {[%clk 0:00:04]} 65. Qb2 {[%clk 0:00:16]}  Qg6 {[%clk 0:00:04]} 66. Qe5 {[%clk 0:00:16]}  Rf7 {[%clk 0:00:04]} 67. Qb8 {[%clk 0:00:16]}  f4 {[%clk 0:00:04]} 0-1


[Site "https://www.chess.com"]

[Event "Titled Tuesday Blitz March 08 Early 2022"]
[White "Kamara, Ansumana"]
[Black "Havanecz, Bianka"]
[WhiteFideId "1622218"]
[BlackFideId "704814"]
[WhiteElo "1935"]
[BlackElo "2381"]
[Result "0-1"]
[Round "02"]
[TimeControl "180+1"]
[Date "2022.03.09"]
[WhiteClock "0:00:57"]
[BlackClock "0:02:02"]

1. e4 {[%clk 0:02:59]}  c6 {[%clk 0:02:57]} 2. d4 {[%clk 0:02:58]}  d5 {[%clk 0:02:57]} 3. Nc3 {[%clk 0:02:57]}  dxe4 {[%clk 0:02:56]} 4. Nxe4 {[%clk 0:02:58]}  Nf6 {[%clk 0:02:57]} 5. Nxf6+ {[%clk 0:02:58]}  exf6 {[%clk 0:02:58]} 6. Nf3 {[%clk 0:02:57]}  Bd6 {[%clk 0:02:58]} 7. Be2 {[%clk 0:02:56]}  O-O {[%clk 0:02:58]} 8. O-O {[%clk 0:02:56]}  Re8 {[%clk 0:02:56]} 9. c3 {[%clk 0:02:56]}  Nd7 {[%clk 0:02:56]} 10. h3 {[%clk 0:02:56]}  Nf8 {[%clk 0:02:56]} 11. Bd3 {[%clk 0:02:56]}  Be6 {[%clk 0:02:53]} 12. Be3 {[%clk 0:02:54]}  Qd7 {[%clk 0:02:53]} 13. Nh2 {[%clk 0:02:27]}  Bxh3 {[%clk 0:02:41]} 14. gxh3 {[%clk 0:02:21]}  Qxh3 {[%clk 0:02:41]} 15. Nf3 {[%clk 0:02:19]}  Ng6 {[%clk 0:02:32]} 16. Bxg6 {[%clk 0:02:14]}  hxg6 {[%clk 0:02:32]} 17. Re1 {[%clk 0:02:14]}  Re4 {[%clk 0:02:30]} 18. Nd2 {[%clk 0:01:49]}  Rg4+ {[%clk 0:02:22]} 19. Qxg4 {[%clk 0:01:48]}  Qxg4+ {[%clk 0:02:22]} 20. Kf1 {[%clk 0:01:47]}  f5 {[%clk 0:02:21]} 21. Nc4 {[%clk 0:01:41]}  Bc7 {[%clk 0:02:13]} 22. Ne5 {[%clk 0:01:37]}  Bxe5 {[%clk 0:02:12]} 23. dxe5 {[%clk 0:01:36]}  f4 {[%clk 0:02:13]} 24. Bd4 {[%clk 0:01:33]}  f3 {[%clk 0:02:12]} 25. Red1 {[%clk 0:01:32]}  Rd8 {[%clk 0:02:08]} 26. Ke1 {[%clk 0:01:25]}  c5 {[%clk 0:02:07]} 27. Rd3 {[%clk 0:01:11]}  cxd4 {[%clk 0:02:05]} 28. cxd4 {[%clk 0:01:11]}  Qg1+ {[%clk 0:02:04]} 29. Kd2 {[%clk 0:01:07]}  Qxa1 {[%clk 0:02:04]} 30. Rxf3 {[%clk 0:01:05]}  Qxb2+ {[%clk 0:02:04]} 31. Ke3 {[%clk 0:01:04]}  Qxd4+ {[%clk 0:02:04]} 32. Ke2 {[%clk 0:01:03]}  Qd1+ {[%clk 0:02:01]} 33. Ke3 {[%clk 0:01:02]}  Rd3+ {[%clk 0:02:01]} 34. Kf4 {[%clk 0:01:00]}  Qxf3+ {[%clk 0:02:02]} 35. Kg5 {[%clk 0:01:00]}  Qf5+ {[%clk 0:02:01]} 36. Kh4 {[%clk 0:00:57]}  Rh3# {[%clk 0:02:02]} 0-1


[Site "https://www.chess.com"]

[Event "Titled Tuesday Blitz March 08 Early 2022"]
[White "Kollars, Dmitrij"]
[Black "Sydoryka, Vladyslav"]
[WhiteFideId "12909572"]
[BlackFideId "14145928"]
[WhiteElo "2584"]
[BlackElo "2283"]
[Result "1-0"]
[Round "02"]
[TimeControl "180+1"]
[Date "2022.03.08"]
[WhiteClock "0:02:15"]
[BlackClock "0:01:59"]

1. Nf3 {[%clk 0:02:52]}  d5 {[%clk 0:02:59]} 2. d4 {[%clk 0:02:51]}  Nf6 {[%clk 0:02:59]} 3. c4 {[%clk 0:02:48]}  e6 {[%clk 0:02:59]} 4. Nc3 {[%clk 0:02:47]}  Bb4 {[%clk 0:02:59]} 5. Qa4+ {[%clk 0:02:46]}  Nc6 {[%clk 0:02:58]} 6. cxd5 {[%clk 0:02:46]}  exd5 {[%clk 0:02:58]} 7. Bg5 {[%clk 0:02:47]}  h6 {[%clk 0:02:58]} 8. Bxf6 {[%clk 0:02:46]}  Qxf6 {[%clk 0:02:59]} 9. e3 {[%clk 0:02:46]}  O-O {[%clk 0:02:57]} 10. Bb5 {[%clk 0:02:45]}  Qg6 {[%clk 0:02:53]} 11. O-O {[%clk 0:02:38]}  Bxc3 {[%clk 0:02:50]} 12. bxc3 {[%clk 0:02:37]}  Bh3 {[%clk 0:02:47]} 13. Ne1 {[%clk 0:02:35]}  Ne7 {[%clk 0:02:45]} 14. Kh1 {[%clk 0:02:33]}  Bf5 {[%clk 0:02:38]} 15. Be2 {[%clk 0:02:28]}  c6 {[%clk 0:02:34]} 16. Qb4 {[%clk 0:02:28]}  Nc8 {[%clk 0:02:25]} 17. Qxb7 {[%clk 0:02:25]}  Nb6 {[%clk 0:02:25]} 18. Nf3 {[%clk 0:02:21]}  Qd6 {[%clk 0:02:14]} 19. Ne5 {[%clk 0:02:16]}  Rfc8 {[%clk 0:02:12]} 20. c4 {[%clk 0:02:15]}  c5 {[%clk 0:01:59]} 21. Qxf7+ {[%clk 0:02:15]} 1-0


[Site "https://www.chess.com"]

[Event "Titled Tuesday Blitz March 08 Early 2022"]
[White "Korkmaz, Necmettin"]
[Black "Kett, Tim"]
[WhiteFideId "6303285"]
[BlackFideId "1801210"]
[WhiteElo "2094"]
[BlackElo "2098"]
[Result "0-1"]
[Round "02"]
[TimeControl "180+1"]
[Date "2022.03.09"]
[WhiteClock "0:00:15"]
[BlackClock "0:00:32"]

1. e4 {[%clk 0:02:29]}  e5 {[%clk 0:02:56]} 2. Nf3 {[%clk 0:02:28]}  Nc6 {[%clk 0:02:57]} 3. Bc4 {[%clk 0:02:24]}  Nf6 {[%clk 0:02:55]} 4. Ng5 {[%clk 0:02:19]}  d5 {[%clk 0:02:55]} 5. exd5 {[%clk 0:02:18]}  Na5 {[%clk 0:02:55]} 6. Bb5+ {[%clk 0:02:18]}  c6 {[%clk 0:02:55]} 7. dxc6 {[%clk 0:02:19]}  bxc6 {[%clk 0:02:55]} 8. Be2 {[%clk 0:02:15]}  h6 {[%clk 0:02:54]} 9. Nf3 {[%clk 0:02:14]}  e4 {[%clk 0:02:54]} 10. Ne5 {[%clk 0:02:14]}  Bd6 {[%clk 0:02:53]} 11. d4 {[%clk 0:02:14]}  O-O {[%clk 0:02:52]} 12. O-O {[%clk 0:02:06]}  Qc7 {[%clk 0:02:51]} 13. Bf4 {[%clk 0:01:58]}  c5 {[%clk 0:02:43]} 14. Nc3 {[%clk 0:01:53]}  a6 {[%clk 0:02:25]} 15. Bg3 {[%clk 0:01:43]}  Rb8 {[%clk 0:01:54]} 16. Rb1 {[%clk 0:01:21]}  cxd4 {[%clk 0:01:52]} 17. Qxd4 {[%clk 0:01:21]}  Rb4 {[%clk 0:01:50]} 18. Qd2 {[%clk 0:00:41]}  Bxe5 {[%clk 0:01:48]} 19. Nb5 {[%clk 0:00:41]}  axb5 {[%clk 0:01:39]} 20. Qxb4 {[%clk 0:00:40]}  Bxg3 {[%clk 0:01:36]} 21. hxg3 {[%clk 0:00:38]}  Nc4 {[%clk 0:01:34]} 22. Qxb5 {[%clk 0:00:36]}  Nd2 {[%clk 0:01:31]} 23. c4 {[%clk 0:00:29]}  Nxb1 {[%clk 0:01:27]} 24. Rxb1 {[%clk 0:00:28]}  e3 {[%clk 0:01:23]} 25. f4 {[%clk 0:00:25]}  Bg4 {[%clk 0:01:11]} 26. c5 {[%clk 0:00:19]}  Bxe2 {[%clk 0:01:09]} 27. Qxe2 {[%clk 0:00:20]}  Qxc5 {[%clk 0:01:08]} 28. b4 {[%clk 0:00:21]}  Qc3 {[%clk 0:00:51]} 29. Rb3 {[%clk 0:00:20]}  Qc1+ {[%clk 0:00:49]} 30. Kh2 {[%clk 0:00:20]}  h5 {[%clk 0:00:46]} 31. g4 {[%clk 0:00:14]}  Nxg4+ {[%clk 0:00:44]} 32. Kg3 {[%clk 0:00:15]}  Rd8 {[%clk 0:00:38]} 33. b5 {[%clk 0:00:15]}  Rd2 {[%clk 0:00:32]} 0-1


[Site "https://www.chess.com"]

[Event "Titled Tuesday Blitz March 08 Early 2022"]
[White "Kovanova, Baira"]
[Black "Thomas, Anysia"]
[WhiteFideId "4164083"]
[BlackFideId "670472"]
[WhiteElo "2190"]
[BlackElo "2002"]
[Result "1-0"]
[Round "02"]
[TimeControl "180+1"]
[Date "2022.03.09"]
[WhiteClock "0:00:34"]
[BlackClock "0:00:01"]

1. e4 {[%clk 0:03:00]}  c5 {[%clk 0:02:58]} 2. Nf3 {[%clk 0:03:00]}  g6 {[%clk 0:02:51]} 3. d3 {[%clk 0:02:53]}  Bg7 {[%clk 0:02:50]} 4. g3 {[%clk 0:02:53]}  Nc6 {[%clk 0:02:48]} 5. Bg2 {[%clk 0:02:54]}  h5 {[%clk 0:02:30]} 6. c3 {[%clk 0:02:52]}  e5 {[%clk 0:02:27]} 7. Be3 {[%clk 0:02:47]}  d6 {[%clk 0:02:26]} 8. Qd2 {[%clk 0:02:47]}  Nge7 {[%clk 0:02:25]} 9. Na3 {[%clk 0:02:41]}  Be6 {[%clk 0:02:09]} 10. h3 {[%clk 0:02:34]}  Rb8 {[%clk 0:02:01]} 11. Nc2 {[%clk 0:02:29]}  d5 {[%clk 0:01:58]} 12. Bxc5 {[%clk 0:02:19]}  b6 {[%clk 0:01:43]} 13. Ba3 {[%clk 0:02:11]}  Qc7 {[%clk 0:01:37]} 14. O-O {[%clk 0:02:06]}  Rd8 {[%clk 0:01:36]} 15. Ng5 {[%clk 0:02:05]}  Bc8 {[%clk 0:01:30]} 16. exd5 {[%clk 0:01:54]}  Nxd5 {[%clk 0:01:29]} 17. Qe2 {[%clk 0:01:55]}  Nce7 {[%clk 0:01:10]} 18. d4 {[%clk 0:01:38]}  O-O {[%clk 0:01:02]} 19. dxe5 {[%clk 0:01:33]}  Bxe5 {[%clk 0:01:00]} 20. Rfe1 {[%clk 0:01:30]}  Bf6 {[%clk 0:00:43]} 21. Ne4 {[%clk 0:01:29]}  Bg7 {[%clk 0:00:42]} 22. Rad1 {[%clk 0:01:24]}  Rfe8 {[%clk 0:00:40]} 23. Nd6 {[%clk 0:01:11]}  Rxd6 {[%clk 0:00:19]} 24. Bxd6 {[%clk 0:01:10]}  Qxd6 {[%clk 0:00:19]} 25. Bxd5 {[%clk 0:01:09]}  Qf6 {[%clk 0:00:16]} 26. Qf3 {[%clk 0:01:04]}  Bf5 {[%clk 0:00:13]} 27. Nd4 {[%clk 0:01:02]}  Rd8 {[%clk 0:00:06]} 28. Nxf5 {[%clk 0:00:56]}  Nxf5 {[%clk 0:00:06]} 29. Be4 {[%clk 0:00:35]}  Rxd1 {[%clk 0:00:04]} 30. Rxd1 {[%clk 0:00:35]}  Kh7 {[%clk 0:00:01]} 31. Bxf5 {[%clk 0:00:34]}  gxf5 {[%clk 0:00:01]} 32. Rd5 {[%clk 0:00:34]} 1-0


[Site "https://www.chess.com"]

[Event "Titled Tuesday Blitz March 08 Early 2022"]
[White "Kushko, Dmitriy"]
[Black "Mikhailov, Viacheslav"]
[WhiteFideId "14162261"]
[BlackFideId "4187369"]
[WhiteElo "2225"]
[BlackElo "2381"]
[Result "0-1"]
[Round "02"]
[TimeControl "180+1"]
[Date "2022.03.09"]
[WhiteClock "0:00:05"]
[BlackClock "0:00:23"]

1. Nf3 {[%clk 0:03:00]}  Nf6 {[%clk 0:03:00]} 2. g3 {[%clk 0:03:00]}  g6 {[%clk 0:03:00]} 3. Bg2 {[%clk 0:03:00]}  Bg7 {[%clk 0:03:01]} 4. c4 {[%clk 0:03:01]}  O-O {[%clk 0:03:02]} 5. O-O {[%clk 0:03:01]}  d6 {[%clk 0:03:03]} 6. d4 {[%clk 0:03:01]}  Nc6 {[%clk 0:03:03]} 7. Nc3 {[%clk 0:03:01]}  Bf5 {[%clk 0:03:04]} 8. d5 {[%clk 0:03:00]}  Na5 {[%clk 0:03:00]} 9. Nd2 {[%clk 0:03:00]}  c5 {[%clk 0:03:00]} 10. e4 {[%clk 0:02:59]}  Bg4 {[%clk 0:03:00]} 11. Qc2 {[%clk 0:02:59]}  Qc8 {[%clk 0:02:57]} 12. b3 {[%clk 0:02:56]}  Bh3 {[%clk 0:02:55]} 13. Bb2 {[%clk 0:02:56]}  Bxg2 {[%clk 0:02:56]} 14. Kxg2 {[%clk 0:02:55]}  a6 {[%clk 0:02:56]} 15. Rae1 {[%clk 0:02:52]}  Ng4 {[%clk 0:02:43]} 16. h3 {[%clk 0:02:42]}  Ne5 {[%clk 0:02:43]} 17. f4 {[%clk 0:02:41]}  Nd7 {[%clk 0:02:44]} 18. Nd1 {[%clk 0:02:30]}  Bxb2 {[%clk 0:02:42]} 19. Qxb2 {[%clk 0:02:24]}  b5 {[%clk 0:02:42]} 20. e5 {[%clk 0:02:00]}  bxc4 {[%clk 0:02:42]} 21. bxc4 {[%clk 0:02:00]}  Qb7 {[%clk 0:02:37]} 22. Qc2 {[%clk 0:01:19]}  Qb4 {[%clk 0:02:20]} 23. Rf3 {[%clk 0:00:55]}  Nxc4 {[%clk 0:02:07]} 24. Rd3 {[%clk 0:00:11]}  Nxd2 {[%clk 0:01:59]} 25. Rxd2 {[%clk 0:00:12]}  Rab8 {[%clk 0:01:44]} 26. exd6 {[%clk 0:00:11]}  exd6 {[%clk 0:01:45]} 27. Ne3 {[%clk 0:00:12]}  Nf6 {[%clk 0:01:39]} 28. Nc4 {[%clk 0:00:10]}  Nxd5 {[%clk 0:01:01]} 29. Rc1 {[%clk 0:00:10]}  Qxc4 {[%clk 0:00:56]} 30. Qxc4 {[%clk 0:00:10]}  Ne3+ {[%clk 0:00:56]} 31. Kf3 {[%clk 0:00:11]}  Nxc4 {[%clk 0:00:57]} 32. Rxc4 {[%clk 0:00:12]}  Rb6 {[%clk 0:00:57]} 33. Ke4 {[%clk 0:00:11]}  Re8+ {[%clk 0:00:52]} 34. Kd5 {[%clk 0:00:11]}  Kf8 {[%clk 0:00:53]} 35. Rc3 {[%clk 0:00:10]}  Re6 {[%clk 0:00:51]} 36. g4 {[%clk 0:00:09]}  Rb4 {[%clk 0:00:51]} 37. f5 {[%clk 0:00:07]}  gxf5 {[%clk 0:00:47]} 38. gxf5 {[%clk 0:00:07]}  Rf6 {[%clk 0:00:44]} 39. Rf3 {[%clk 0:00:08]}  h5 {[%clk 0:00:43]} 40. Kc6 {[%clk 0:00:08]}  c4 {[%clk 0:00:38]} 41. Rxd6 {[%clk 0:00:06]}  Rxd6+ {[%clk 0:00:33]} 42. Kxd6 {[%clk 0:00:06]}  Rb5 {[%clk 0:00:30]} 43. f6 {[%clk 0:00:04]}  h4 {[%clk 0:00:26]} 44. Rc3 {[%clk 0:00:04]}  Rb6+ {[%clk 0:00:27]} 45. Ke5 {[%clk 0:00:04]}  Re6+ {[%clk 0:00:26]} 46. Kf5 {[%clk 0:00:03]}  Rc6 {[%clk 0:00:27]} 47. Kg5 {[%clk 0:00:03]}  Ke8 {[%clk 0:00:26]} 48. Kxh4 {[%clk 0:00:04]}  Kd7 {[%clk 0:00:26]} 49. Kg5 {[%clk 0:00:04]}  Ke6 {[%clk 0:00:27]} 50. h4 {[%clk 0:00:03]}  Rc5+ {[%clk 0:00:27]} 51. Kg4 {[%clk 0:00:03]}  Kxf6 {[%clk 0:00:27]} 52. h5 {[%clk 0:00:03]}  a5 {[%clk 0:00:26]} 53. a4 {[%clk 0:00:02]}  Kg7 {[%clk 0:00:26]} 54. Kh4 {[%clk 0:00:02]}  Kh6 {[%clk 0:00:26]} 55. Kg4 {[%clk 0:00:03]}  f6 {[%clk 0:00:26]} 56. Rc1 {[%clk 0:00:02]}  c3 {[%clk 0:00:27]} 57. Rc2 {[%clk 0:00:03]}  Kg7 {[%clk 0:00:21]} 58. Kh4 {[%clk 0:00:03]}  Kh7 {[%clk 0:00:22]} 59. Kg4 {[%clk 0:00:04]}  Kh6 {[%clk 0:00:23]} 60. Kf4 {[%clk 0:00:03]}  Kxh5 {[%clk 0:00:23]} 61. Ke4 {[%clk 0:00:04]}  Kg6 {[%clk 0:00:22]} 62. Kd4 {[%clk 0:00:05]}  Rc8 {[%clk 0:00:23]} 63. Rg2+ {[%clk 0:00:04]}  Kf7 {[%clk 0:00:23]} 64. Kd3 {[%clk 0:00:05]}  c2 {[%clk 0:00:23]} 0-1


[Site "https://www.chess.com"]

[Event "Titled Tuesday Blitz March 08 Early 2022"]
[White "Lauridsen, Jesper Morch"]
[Black "Bilan, Danila"]
[WhiteFideId "1401890"]
[BlackFideId "24161918"]
[WhiteElo "2264"]
[BlackElo "2164"]
[Result "1/2-1/2"]
[Round "02"]
[TimeControl "180+1"]
[Date "2022.03.09"]
[WhiteClock "0:00:08"]
[BlackClock "0:00:30"]

1. e4 {[%clk 0:02:38]}  c5 {[%clk 0:02:42]} 2. Nf3 {[%clk 0:02:36]}  e6 {[%clk 0:02:37]} 3. d4 {[%clk 0:02:35]}  cxd4 {[%clk 0:02:37]} 4. Nxd4 {[%clk 0:02:36]}  a6 {[%clk 0:02:37]} 5. Bd3 {[%clk 0:02:35]}  Bc5 {[%clk 0:02:36]} 6. Nb3 {[%clk 0:02:33]}  Be7 {[%clk 0:02:35]} 7. Qg4 {[%clk 0:02:31]}  Bf6 {[%clk 0:02:34]} 8. N1d2 {[%clk 0:02:23]}  d6 {[%clk 0:02:26]} 9. Nf3 {[%clk 0:02:21]}  Nc6 {[%clk 0:02:24]} 10. Bg5 {[%clk 0:02:02]}  h5 {[%clk 0:02:02]} 11. Qh4 {[%clk 0:01:56]}  b5 {[%clk 0:01:56]} 12. O-O-O {[%clk 0:01:46]}  Qb6 {[%clk 0:01:48]} 13. Bxf6 {[%clk 0:01:15]}  Nxf6 {[%clk 0:01:49]} 14. Qg3 {[%clk 0:01:15]}  O-O {[%clk 0:01:43]} 15. Qxd6 {[%clk 0:01:13]}  Qxf2 {[%clk 0:01:36]} 16. Qxc6 {[%clk 0:01:09]}  Rb8 {[%clk 0:01:35]} 17. Rhf1 {[%clk 0:00:59]}  Qxg2 {[%clk 0:01:33]} 18. Rd2 {[%clk 0:00:51]}  Qg4 {[%clk 0:01:30]} 19. Qd6 {[%clk 0:00:39]}  Bb7 {[%clk 0:01:27]} 20. Qg3 {[%clk 0:00:34]}  Nxe4 {[%clk 0:01:24]} 21. Bxe4 {[%clk 0:00:33]}  Bxe4 {[%clk 0:01:25]} 22. Qxg4 {[%clk 0:00:30]}  hxg4 {[%clk 0:01:25]} 23. Ne5 {[%clk 0:00:30]}  Rbc8 {[%clk 0:01:15]} 24. Nxg4 {[%clk 0:00:27]}  Rc7 {[%clk 0:01:09]} 25. Re1 {[%clk 0:00:25]}  Bf5 {[%clk 0:01:07]} 26. Ne3 {[%clk 0:00:24]}  Bg6 {[%clk 0:01:07]} 27. Red1 {[%clk 0:00:23]}  Rfc8 {[%clk 0:00:56]} 28. Rd8+ {[%clk 0:00:23]}  Rxd8 {[%clk 0:00:56]} 29. Rxd8+ {[%clk 0:00:22]}  Kh7 {[%clk 0:00:57]} 30. c3 {[%clk 0:00:21]}  Rc6 {[%clk 0:00:51]} 31. Ng4 {[%clk 0:00:20]}  Bf5 {[%clk 0:00:49]} 32. Ne5 {[%clk 0:00:20]}  Rc7 {[%clk 0:00:49]} 33. Nd4 {[%clk 0:00:19]}  Be4 {[%clk 0:00:48]} 34. Ng4 {[%clk 0:00:18]}  Bd5 {[%clk 0:00:46]} 35. Ne3 {[%clk 0:00:17]}  Be4 {[%clk 0:00:45]} 36. Kd2 {[%clk 0:00:16]}  e5 {[%clk 0:00:44]} 37. Ne2 {[%clk 0:00:15]}  f5 {[%clk 0:00:44]} 38. Ng3 {[%clk 0:00:15]}  Bb1 {[%clk 0:00:40]} 39. Ngxf5 {[%clk 0:00:15]}  Bxa2 {[%clk 0:00:39]} 40. Ng3 {[%clk 0:00:14]}  a5 {[%clk 0:00:38]} 41. Ne4 {[%clk 0:00:14]}  b4 {[%clk 0:00:38]} 42. h4 {[%clk 0:00:13]}  bxc3+ {[%clk 0:00:37]} 43. bxc3 {[%clk 0:00:13]}  Bf7 {[%clk 0:00:38]} 44. Ng5+ {[%clk 0:00:12]}  Kg6 {[%clk 0:00:38]} 45. Rd6+ {[%clk 0:00:10]}  Kh5 {[%clk 0:00:37]} 46. Nxf7 {[%clk 0:00:10]}  Rxf7 {[%clk 0:00:38]} 47. Rd5 {[%clk 0:00:10]}  Kxh4 {[%clk 0:00:37]} 48. Rxe5 {[%clk 0:00:10]}  Ra7 {[%clk 0:00:37]} 49. Nf5+ {[%clk 0:00:10]}  Kg4 {[%clk 0:00:35]} 50. Re7 {[%clk 0:00:10]}  Rxe7 {[%clk 0:00:28]} 51. Nxe7 {[%clk 0:00:10]}  Kf4 {[%clk 0:00:29]} 52. c4 {[%clk 0:00:09]}  g5 {[%clk 0:00:29]} 53. c5 {[%clk 0:00:09]}  Ke5 {[%clk 0:00:30]} 54. Ke3 {[%clk 0:00:08]}  Ke6 {[%clk 0:00:29]} 55. Nc6 {[%clk 0:00:08]}  Kd5 {[%clk 0:00:29]} 56. Nxa5 {[%clk 0:00:07]}  Kxc5 {[%clk 0:00:30]} 57. Kf3 {[%clk 0:00:08]}  g4+ {[%clk 0:00:30]} 58. Kxg4 {[%clk 0:00:08]} 1/2-1/2


[Site "https://www.chess.com"]

[Event "Titled Tuesday Blitz March 08 Early 2022"]
[White "Lazavik, Denis"]
[Black "Goryachkina, Aleksandra"]
[WhiteFideId "13515110"]
[BlackFideId "4147103"]
[WhiteElo "2437"]
[BlackElo "2426"]
[Result "1-0"]
[Round "02"]
[TimeControl "180+1"]
[Date "2022.03.08"]
[WhiteClock "0:00:08"]
[BlackClock "0:00:01"]

1. d4 {[%clk 0:03:00]}  Nf6 {[%clk 0:02:59]} 2. c4 {[%clk 0:03:01]}  e6 {[%clk 0:02:59]} 3. Nf3 {[%clk 0:03:01]}  d5 {[%clk 0:02:58]} 4. g3 {[%clk 0:03:01]}  Be7 {[%clk 0:02:58]} 5. Bg2 {[%clk 0:03:01]}  O-O {[%clk 0:02:58]} 6. O-O {[%clk 0:03:02]}  dxc4 {[%clk 0:02:58]} 7. Qc2 {[%clk 0:03:03]}  a6 {[%clk 0:02:56]} 8. a4 {[%clk 0:03:02]}  Bd7 {[%clk 0:02:55]} 9. Qxc4 {[%clk 0:02:56]}  Bc6 {[%clk 0:02:55]} 10. Bg5 {[%clk 0:02:55]}  Nbd7 {[%clk 0:02:49]} 11. Nc3 {[%clk 0:02:54]}  h6 {[%clk 0:02:36]} 12. Bxf6 {[%clk 0:02:53]}  Nxf6 {[%clk 0:02:33]} 13. Rfd1 {[%clk 0:02:41]}  Bd6 {[%clk 0:02:26]} 14. Ne5 {[%clk 0:02:20]}  Bxg2 {[%clk 0:02:20]} 15. Kxg2 {[%clk 0:02:21]}  c6 {[%clk 0:02:09]} 16. a5 {[%clk 0:02:15]}  Qe7 {[%clk 0:02:06]} 17. Nd3 {[%clk 0:02:12]}  e5 {[%clk 0:01:58]} 18. dxe5 {[%clk 0:02:08]}  Bxe5 {[%clk 0:01:57]} 19. Nxe5 {[%clk 0:01:51]}  Qxe5 {[%clk 0:01:57]} 20. b4 {[%clk 0:01:50]}  Rad8 {[%clk 0:01:53]} 21. e3 {[%clk 0:01:32]}  Rfe8 {[%clk 0:01:22]} 22. Rac1 {[%clk 0:01:04]}  Qf5 {[%clk 0:01:10]} 23. Rd4 {[%clk 0:00:36]}  Rxd4 {[%clk 0:01:06]} 24. Qxd4 {[%clk 0:00:36]}  Ne4 {[%clk 0:01:05]} 25. f3 {[%clk 0:00:25]}  Ng5 {[%clk 0:00:53]} 26. Rf1 {[%clk 0:00:23]}  Re6 {[%clk 0:00:23]} 27. e4 {[%clk 0:00:19]}  Qh3+ {[%clk 0:00:20]} 28. Kg1 {[%clk 0:00:19]}  Rf6 {[%clk 0:00:16]} 29. Qd8+ {[%clk 0:00:19]}  Kh7 {[%clk 0:00:16]} 30. Qd3 {[%clk 0:00:20]}  Ne6 {[%clk 0:00:06]} 31. f4 {[%clk 0:00:19]}  Kg8 {[%clk 0:00:03]} 32. e5 {[%clk 0:00:19]}  Rf5 {[%clk 0:00:03]} 33. Ne4 {[%clk 0:00:19]}  Rh5 {[%clk 0:00:02]} 34. Rf2 {[%clk 0:00:16]}  Qf5 {[%clk 0:00:01]} 35. Qf3 {[%clk 0:00:11]}  Qh3 {[%clk 0:00:01]} 36. Nd6 {[%clk 0:00:08]} 1-0


[Site "https://www.chess.com"]